bitfinex/quotes_BTCUSD_20220213
["timestamp","ask_amount","ask_price","bid_price","bid_amount"]
[1644771767744,0.3,42245.0,42232.0,0.332736]
[1644771767944,0.00027842,42247.0,42234.0,0.00038052]
[1644771768142,0.00038046,42241.0,42234.0,0.00038052]
[1644771768340,0.35,42240.0,42226.0,0.13120291]
[1644771768542,0.00038046,42241.0,42228.0,0.07399234]
[1644771768543,0.19512217,42241.0,42228.0,0.07399234]
[1644771768742,0.19512217,42241.0,42226.0,0.00152239]
[1644771768941,2.76954774,42240.0,42219.0,0.15]
[1644771769143,2.76954774,42240.0,42221.0,0.332736]
[1644771769339,0.059221,42237.0,42221.0,0.332736]
[1644771769540,0.05,42240.0,42221.0,0.52615824]
[1644771769541,0.10922,42240.0,42221.0,0.52615824]
[1644771769740,0.05922,42240.0,42221.0,0.52615824]
[1644771770039,0.05922,42240.0,42221.0,0.19342224]
[1644771770239,0.05922,42240.0,42225.0,0.0782892]
[1644771770439,0.05935891,42239.0,42225.0,0.0782892]
[1644771770639,0.05935891,42239.0,42226.0,0.56748712]
[1644771770640,0.00014091,42239.0,42226.0,0.56748712]
[1644771771141,0.00014091,42239.0,42225.0,0.0782892]
[1644771771383,0.00014091,42239.0,42220.0,0.00073536]
[1644771771384,1.0,42238.0,42220.0,0.00073536]
[1644771771584,0.34552845,42237.0,42220.0,0.00073536]
[1644771771787,0.059233,42230.0,42220.0,0.00073536]
[1644771771986,0.059233,42230.0,42221.0,0.332736]
[1644771772183,0.059233,42230.0,42220.0,0.00073536]
[1644771772382,0.95684138,42233.0,42221.0,0.332736]
[1644771772583,0.95684138,42233.0,42228.0,0.00132937]
[1644771772584,0.059228,42232.0,42228.0,0.00132937]
[1644771773381,0.73376111,42232.0,42228.0,0.00132937]
[1644771773983,0.73376111,42232.0,42228.0,0.00170993]
[1644771774187,1.03376111,42232.0,42228.0,0.00170993]
[1644771774390,0.48070806,42231.0,42228.0,0.00164755]
[1644771774786,0.59919506,42231.0,42228.0,0.00164755]
[1644771774985,0.39650806,42230.0,42228.0,0.00126699]
[1644771775235,0.3,42229.0,42228.0,6.99e-06]
[1644771775438,0.33865959,42229.0,42220.0,0.00073536]
[1644771775636,0.118508,42227.0,42220.0,0.00073536]
[1644771775836,0.118508,42227.0,42212.0,0.00141601]
[1644771775837,1.0,42225.0,42212.0,0.00141601]
[1644771776040,1.0,42225.0,42205.0,0.433]
[1644771776041,1.118513,42223.0,42205.0,0.433]
[1644771776238,1.05,42221.0,42198.0,0.13919662]
[1644771776435,1.05,42221.0,42200.0,0.0196292]
[1644771776436,0.08584594,42205.0,42200.0,0.0196292]
[1644771776637,0.0765,42205.0,42202.0,0.3011]
[1644771776834,0.0765,42205.0,42201.0,0.0011711]
[1644771777437,0.0973,42204.0,42201.0,0.0011711]
[1644771777638,0.059281,42202.0,42201.0,1.3e-07]
[1644771777838,0.059281,42202.0,42184.0,0.0011]
[1644771777839,0.25778058,42199.0,42184.0,0.0011]
[1644771778037,0.824881,42202.0,42187.0,0.05497625]
[1644771778038,0.0323,42198.0,42187.0,0.05497625]
[1644771778236,0.059281,42202.0,42187.0,0.05497625]
[1644771778237,0.0473,42197.0,42188.0,0.3]
[1644771778435,0.0473,42196.0,42188.0,0.3]
[1644771778636,0.118586,42198.0,42189.0,0.332736]
[1644771778637,0.08947534,42195.0,42189.0,0.332736]
[1644771778892,0.03870452,42204.0,42195.0,0.45861188]
[1644771779094,0.0473,42208.0,42204.0,0.20587703]
[1644771779095,0.08932975,42208.0,42204.0,0.20587703]
[1644771779292,0.39191518,42210.0,42205.0,0.632736]
[1644771779492,0.0473,42219.0,42205.0,0.332736]
[1644771779694,0.0473,42219.0,42204.0,0.20587703]
[1644771779695,0.059256,42217.0,42204.0,0.20587703]
[1644771779890,0.04,42206.0,42204.0,0.20587703]
[1644771780090,0.04,42206.0,42205.0,0.08103754]
[1644771780491,0.03860202,42206.0,42205.0,0.08103754]
[1644771780692,0.0473,42219.0,42205.0,0.08103754]
[1644771780693,0.24198478,42230.0,42205.0,0.08103754]
[1644771780892,0.0473,42218.0,42206.0,0.35]
[1644771781093,0.04,42226.0,42212.0,0.22268903]
[1644771781295,0.118486,42225.0,42214.0,0.15]
[1644771781497,0.04,42226.0,42215.0,0.332736]
[1644771781693,0.04,42226.0,42216.0,0.67311354]
[1644771781891,0.04,42226.0,42217.0,0.382736]
[1644771782091,0.04,42226.0,42218.0,0.0973]
[1644771782295,0.04,42226.0,42219.0,0.632736]
[1644771782499,0.00037709,42222.0,42220.0,0.24]
[1644771782744,0.01,42229.0,42222.0,1.0]
[1644771782941,0.01,42229.0,42223.0,0.33170639]
[1644771783143,0.01,42239.0,42224.0,1.406514]
[1644771783337,0.01,42239.0,42224.0,0.506514]
[1644771783540,0.01,42239.0,42224.0,0.3473]
[1644771784140,0.01,42239.0,42233.0,0.08406036]
[1644771784341,0.01,42239.0,42234.0,0.680036]
[1644771784540,0.01,42239.0,42235.0,0.332736]
[1644771784943,0.01,42239.0,42234.0,0.332736]
[1644771785139,0.01,42239.0,42234.0,0.59880384]
[1644771785439,0.01,42239.0,42235.0,0.29093899]
[1644771786039,0.01014236,42239.0,42234.0,0.26606784]
[1644771786242,0.01014236,42239.0,42235.0,0.60496127]
[1644771786485,0.01014236,42239.0,42236.0,0.332736]
[1644771787084,0.01,42239.0,42236.0,0.332736]
[1644771787284,0.00079532,42238.0,42237.0,0.0473]
[1644771787491,0.00079532,42238.0,42237.0,0.38471194]
[1644771787684,0.00079532,42238.0,42237.0,0.0473]
[1644771788086,0.00079532,42238.0,42234.0,0.26606784]
[1644771788386,0.00079532,42238.0,42235.0,0.332736]
[1644771788888,0.04,42246.0,42238.0,1.0]
[1644771788889,0.00035627,42246.0,42238.0,1.0]
[1644771789084,0.00035627,42246.0,42239.0,0.3473]
[1644771789285,0.00035627,42246.0,42239.0,0.732736]
[1644771789485,0.00035627,42246.0,42240.0,0.07653189]
[1644771789784,0.00035627,42246.0,42241.0,0.64764203]
[1644771790838,0.00035627,42246.0,42241.0,0.94764203]
[1644771791037,0.00035627,42246.0,42242.0,0.30991283]
[1644771791240,0.00035627,42246.0,42243.0,0.327736]
[1644771791839,0.00035627,42246.0,42243.0,0.32787971]
[1644771792539,0.00035627,42246.0,42243.0,0.37787971]
[1644771792743,0.00035627,42246.0,42243.0,0.47787971]
[1644771792939,0.00035627,42246.0,42244.0,0.332736]
[1644771793140,0.03,42253.0,42245.0,0.21837464]
[1644771793342,0.03,42253.0,42246.0,0.380325]
[1644771793740,0.03,42253.0,42246.0,0.58046871]
[1644771793988,0.03,42253.0,42247.0,0.58159663]
[1644771794186,0.03,42253.0,42247.0,0.67904034]
[1644771794385,0.03,42253.0,42247.0,0.77904034]
[1644771794787,0.03,42253.0,42248.0,0.41487484]
[1644771794990,0.01,42259.0,42250.0,0.333025]
[1644771795392,0.01,42259.0,42251.0,0.333025]
[1644771795589,0.01,42259.0,42251.0,0.33310633]
[1644771795889,0.01,42259.0,42252.0,0.0473]
[1644771796088,0.01,42259.0,42256.0,0.08305888]
[1644771796291,0.01,42259.0,42257.0,0.56379047]
[1644771800049,0.00033881,42260.0,42259.0,0.01999999]
[1644771800251,0.01,42262.0,42259.0,0.35294099]
[1644771800454,0.04,42266.0,42260.0,0.7473]
[1644771800653,0.00033881,42262.0,42261.0,0.332941]
[1644771800849,0.00033881,42262.0,42261.0,0.380241]
[1644771801484,0.04,42266.0,42261.0,0.380241]
[1644771801786,0.01,42269.0,42262.0,1.2612644]
[1644771801787,0.00014201,42264.0,42262.0,1.2612644]
[1644771801983,0.00014201,42264.0,42263.0,0.63264365]
[1644771802384,0.00014201,42264.0,42263.0,0.78264365]
[1644771802586,0.00014201,42264.0,42263.0,0.83264365]
[1644771802787,0.01,42269.0,42263.0,0.89714727]
[1644771802985,0.00014201,42266.0,42264.0,0.63545054]
[1644771803191,0.427372,42295.0,42268.0,1.0]
[1644771803395,0.0001,42289.0,42282.0,0.35]
[1644771803600,0.20630152,42298.0,42284.0,1.25]
[1644771803601,0.0999,42298.0,42284.0,1.25]
[1644771803787,0.0999,42298.0,42285.0,0.680241]
[1644771803788,0.0949,42298.0,42285.0,0.680241]
[1644771803986,0.01,42299.0,42285.0,0.680241]
[1644771804186,0.01,42299.0,42297.0,0.19619768]
[1644771804386,0.01,42299.0,42298.0,0.0473]
[1644771804587,0.01,42299.0,42297.0,0.19619768]
[1644771805246,0.005045,42298.0,42291.0,0.0473]
[1644771805446,0.005045,42298.0,42284.0,0.05]
[1644771805447,0.005045,42298.0,42286.0,0.74140798]
[1644771805448,0.05,42293.0,42286.0,0.74140798]
[1644771805650,0.005045,42292.0,42286.0,0.74140798]
[1644771805845,0.20663445,42288.0,42286.0,0.74140798]
[1644771806041,0.005045,42287.0,42286.0,0.73640798]
[1644771806241,0.118295,42296.0,42286.0,0.73640798]
[1644771806242,0.05,42294.0,42286.0,0.73640798]
[1644771806646,0.00037863,42289.0,42286.0,0.73640798]
[1644771806842,0.00037863,42289.0,42287.0,0.332941]
[1644771807147,0.055045,42288.0,42286.0,0.73640798]
[1644771807346,0.05,42287.0,42286.0,0.73640798]
[1644771807544,0.005045,42287.0,42286.0,0.73640798]
[1644771807745,0.00043792,42288.0,42286.0,0.73640798]
[1644771808348,0.05043792,42288.0,42286.0,0.73140798]
[1644771808546,0.00043792,42288.0,42286.0,0.73140798]
[1644771808743,0.00043792,42288.0,42281.0,0.3]
[1644771808744,0.05043792,42288.0,42281.0,0.3]
[1644771808988,0.00043792,42288.0,42281.0,0.3]
[1644771809187,0.00043792,42288.0,42282.0,0.332941]
[1644771809789,0.00043792,42288.0,42283.0,0.332941]
[1644771809987,0.00043792,42288.0,42281.0,0.27895375]
[1644771810189,0.00043792,42288.0,42281.0,0.25894694]
[1644771810488,0.00043792,42288.0,42280.0,0.21222473]
[1644771810489,0.00037864,42287.0,42280.0,0.21222473]
[1644771810687,0.24130013,42293.0,42290.0,0.2396688]
[1644771810895,0.06419,42292.0,42290.0,0.2396688]
[1644771813836,0.005045,42291.0,42290.0,0.2396688]
[1644771814433,0.052345,42291.0,42290.0,0.2396688]
[1644771816588,0.00037861,42293.0,42290.0,0.57254742]
[1644771816788,0.00037861,42293.0,42291.0,0.332941]
[1644771816986,0.00037861,42293.0,42290.0,0.23960642]
[1644771817186,0.128277,42299.0,42290.0,0.23960642]
[1644771817389,0.00042536,42291.0,42290.0,0.23960642]
[1644771818090,0.00042536,42291.0,42290.0,0.57254742]
[1644771818287,0.00042536,42291.0,42290.0,0.23960642]
[1644771820644,0.005045,42292.0,42290.0,0.23960642]
[1644771821042,0.05,42297.0,42290.0,0.23960642]
[1644771821043,0.005045,42296.0,42290.0,0.23960642]
[1644771821247,0.059143,42294.0,42290.0,0.23960642]
[1644771821446,0.01,42299.0,42293.0,0.25199793]
[1644771822147,0.01,42299.0,42290.0,0.24005065]
[1644771822148,0.00042536,42291.0,42290.0,0.24005065]
[1644771823891,0.00042536,42291.0,42290.0,0.23505065]
[1644771825395,0.00528395,42299.0,42290.0,0.56772465]
[1644771825593,0.00528395,42299.0,42291.0,0.3]
[1644771825995,0.00037859,42295.0,42290.0,0.23505065]
[1644771826499,0.059137,42294.0,42290.0,0.23505065]
[1644771827092,0.054137,42294.0,42290.0,0.23542929]
[1644771827492,0.00038991,42291.0,42290.0,0.23587036]
[1644771828143,0.00038991,42291.0,42290.0,0.23549172]
[1644771832091,0.19694968,42291.0,42290.0,0.23531215]
[1644771832293,0.29424968,42291.0,42290.0,0.23531215]
[1644771833292,0.24424968,42291.0,42290.0,0.23531215]
[1644771833895,0.04768991,42291.0,42290.0,0.23531215]
[1644771835146,0.04768991,42291.0,42290.0,0.22531215]
[1644771836344,0.04213773,42291.0,42290.0,0.22531215]
[1644771837439,0.04252922,42291.0,42290.0,0.22557365]
[1644771837640,0.04252922,42291.0,42290.0,0.22551127]
[1644771842095,0.04252922,42291.0,42290.0,0.22531215]
[1644771849192,0.09252922,42291.0,42290.0,0.22531215]
[1644771849393,0.38382756,42291.0,42290.0,0.22531215]
[1644771849596,0.33382756,42291.0,42290.0,0.22531215]
[1644771849798,0.04252922,42291.0,42290.0,0.22531215]
[1644771850650,0.00039149,42291.0,42290.0,0.22531215]
[1644771852948,0.04769149,42291.0,42290.0,0.22531215]
[1644771853749,0.33764353,42291.0,42290.0,0.22531215]
[1644771853988,0.04769149,42291.0,42290.0,0.22531215]
[1644771854388,0.09769149,42291.0,42290.0,0.22531215]
[1644771854589,0.17769149,42291.0,42290.0,0.22531215]
[1644771856588,0.17037556,42291.0,42290.0,0.22531215]
[1644771857191,0.34783356,42291.0,42290.0,0.22531215]
[1644771857389,0.30053356,42291.0,42290.0,0.22531215]
[1644771857941,0.34789876,42291.0,42290.0,0.22531215]
[1644771858542,0.34789876,42291.0,42290.0,0.22524977]
[1644771861148,0.34789876,42291.0,42288.0,1.585e-05]
[1644771861149,1.30549705,42290.0,42288.0,1.585e-05]
[1644771861396,1.00694917,42289.0,42288.0,1.585e-05]
[1644771861594,0.2,42278.0,42268.0,0.0591]
[1644771861794,0.2,42278.0,42260.0,0.2004917]
[1644771861795,0.08,42275.0,42260.0,0.2004917]
[1644771861993,0.24560435,42277.0,42260.0,0.2004917]
[1644771861994,0.07358,42263.0,42260.0,0.2004917]
[1644771862196,0.11618385,42264.0,42260.0,0.21483248]
[1644771862395,0.059186,42261.0,42259.0,0.01999999]
[1644771862595,0.0473,42260.0,42259.0,0.01999999]
[1644771864496,0.1273,42260.0,42259.0,0.01999999]
[1644771864697,0.1273,42260.0,42259.0,0.06999999]
[1644771865639,0.1273,42260.0,42259.0,0.01999999]
[1644771867041,0.1773,42260.0,42259.0,0.01999999]
[1644771867441,0.1773,42260.0,42259.0,0.00999999]
[1644771867442,0.13071941,42260.0,42259.0,0.00999999]
[1644771867839,0.17801941,42260.0,42259.0,0.00999999]
[1644771871301,0.47641035,42260.0,42259.0,0.00999999]
[1644771873145,0.52641035,42260.0,42259.0,0.00999999]
[1644771873444,0.97761035,42260.0,42259.0,0.00999999]
[1644771873841,1.13865952,42260.0,42259.0,0.00999999]
[1644771874043,0.97761035,42260.0,42259.0,0.00999999]
[1644771874242,1.13865952,42260.0,42259.0,0.00999999]
[1644771878697,0.29398659,42257.0,42255.0,0.04]
[1644771878897,0.7851827,42256.0,42255.0,0.04]
[1644771879295,0.7851827,42256.0,42255.0,0.03]
[1644771879296,1.09623187,42256.0,42255.0,0.03]
[1644771879498,0.9351827,42256.0,42255.0,0.03]
[1644771880144,1.09623187,42256.0,42255.0,0.03]
[1644771880348,1.15543787,42256.0,42255.0,0.03]
[1644771884891,1.15543787,42256.0,42253.0,0.0003814]
[1644771885090,0.08,42254.0,42253.0,0.0003814]
[1644771885294,0.286514,42254.0,42253.0,0.0003814]
[1644771885493,0.84444463,42254.0,42253.0,0.0003814]
[1644771885690,0.84444463,42254.0,42252.0,0.0311]
[1644771885891,0.4312,42253.0,42252.0,0.0311]
[1644771886091,0.4785,42253.0,42252.0,0.0311]
[1644771886294,0.5785,42253.0,42252.0,0.0311]
[1644771886491,0.61803876,42253.0,42252.0,0.0311]
[1644771886691,1.11803876,42253.0,42252.0,0.0311]
[1644771886892,1.0785,42253.0,42252.0,0.0311]
[1644771887093,1.23954917,42253.0,42252.0,0.0311]
[1644771888845,0.08,42251.0,42247.0,0.0022]
[1644771889042,1.20752235,42252.0,42247.0,0.0022]
[1644771889043,0.4312,42248.0,42247.0,0.0022]
[1644771889240,0.5285,42248.0,42247.0,0.0022]
[1644771889441,0.94887572,42248.0,42247.0,0.0022]
[1644771889642,1.10992489,42248.0,42247.0,0.0022]
[1644771892505,1.08,42247.0,42245.0,0.00368086]
[1644771892706,1.78622954,42247.0,42245.0,0.00368086]
[1644771892906,2.04727871,42247.0,42245.0,0.0033]
[1644771893107,0.72721231,42246.0,42245.0,0.0033]
[1644771893305,1.03556148,42246.0,42245.0,0.0033]
[1644771893505,0.73954917,42246.0,42245.0,0.0033]
[1644771893707,0.63954917,42246.0,42245.0,0.0033]
[1644771894706,0.4785,42246.0,42245.0,0.0033]
[1644771895748,0.5785,42246.0,42245.0,0.0033]
[1644771895949,0.73970419,42246.0,42245.0,0.0033]
[1644771896148,0.5785,42246.0,42245.0,0.0033]
[1644771897149,0.57870376,42246.0,42245.0,0.0033]
[1644771898153,0.73991054,42246.0,42245.0,0.0033]
[1644771898756,0.47870376,42246.0,42245.0,0.0033]
[1644771898999,0.12750376,42246.0,42245.0,0.0033]
[1644771899204,0.139214,42244.0,42243.0,0.00035283]
[1644771899399,0.307644,42244.0,42243.0,0.00035283]
[1644771899696,0.357644,42244.0,42243.0,0.00035283]
[1644771899899,0.307644,42244.0,42243.0,0.00035283]
[1644771900096,0.307644,42244.0,42236.0,0.14482569]
[1644771900297,0.08,42241.0,42236.0,0.14482569]
[1644771900498,0.059215,42242.0,42241.0,0.15999999]
[1644771901098,0.11843,42242.0,42241.0,0.15999999]
[1644771901501,0.059215,42242.0,42241.0,0.15999999]
[1644771903642,0.05828934,42242.0,42241.0,0.15999999]
[1644771904043,0.04603934,42242.0,42241.0,0.15999999]
[1644771905047,0.177638,42244.0,42241.0,0.45999999]
[1644771905048,0.059201,42244.0,42241.0,0.45999999]
[1644771905246,0.00020376,42246.0,42241.0,0.45999999]
[1644771905446,0.00020376,42246.0,42244.0,0.05]
[1644771905648,0.00020376,42246.0,42245.0,0.71291828]
[1644771905846,0.00020376,42246.0,42245.0,0.91589966]
[1644771907098,0.28459822,42263.0,42245.0,1.21508566]
[1644771907296,0.16106585,42265.0,42259.0,0.06697448]
[1644771907500,0.16106585,42265.0,42261.0,0.05]
[1644771907696,0.5,42270.0,42262.0,0.332674]
[1644771907896,0.2499,42280.0,42263.0,0.2258699]
[1644771908096,0.5,42279.0,42264.0,0.3]
[1644771908296,0.23160125,42276.0,42268.0,0.08144576]
[1644771908596,0.059169,42275.0,42264.0,0.3]
[1644771908795,0.059169,42275.0,42263.0,0.2258699]
[1644771909198,0.3,42278.0,42263.0,0.2258699]
[1644771909398,0.059169,42275.0,42263.0,0.2258699]
[1644771909600,0.059169,42275.0,42264.0,0.38312865]
[1644771909796,1.157928,42283.0,42271.0,0.05]
[1644771909797,0.53,42283.0,42271.0,0.05]
[1644771909997,0.53,42283.0,42272.0,0.0473]
[1644771910250,0.24363543,42281.0,42272.0,0.4157289]
[1644771910448,0.24363543,42281.0,42275.0,0.19748659]
[1644771910651,0.059157,42280.0,42275.0,0.19748659]
[1644771910848,0.059157,42280.0,42272.0,0.3684289]
[1644771911449,0.03,42283.0,42272.0,0.3684289]
[1644771911649,0.03,42283.0,42272.0,0.3]
[1644771911852,0.02,42283.0,42272.0,0.49750148]
[1644771912154,0.00021678,42278.0,42272.0,0.49750148]
[1644771912352,0.00021678,42278.0,42275.0,0.00038401]
[1644771913352,0.00021678,42278.0,42272.0,0.56737351]
[1644771913552,0.00021678,42278.0,42274.0,0.00038402]
[1644771914190,0.00042811,42279.0,42274.0,0.00038402]
[1644771914191,0.0002468,42279.0,42274.0,0.00038402]
[1644771914393,0.0002468,42279.0,42275.0,0.05]
[1644771914595,0.0002468,42279.0,42276.0,0.32716748]
[1644771914993,0.0002468,42279.0,42274.0,0.00038402]
[1644771915793,0.0002468,42279.0,42273.0,0.27689283]
[1644771915993,0.0002468,42279.0,42274.0,0.00038402]
[1644771916394,0.0002468,42279.0,42277.0,0.22174016]
[1644771916995,0.0002468,42279.0,42277.0,0.55441416]
[1644771917397,0.00021875,42279.0,42277.0,0.22174016]
[1644771917650,0.00021875,42279.0,42278.0,0.332674]
[1644771918245,0.00021875,42279.0,42277.0,0.58483306]
[1644771918445,0.00021875,42279.0,42278.0,0.332674]
[1644771918650,0.00021875,42279.0,42278.0,0.62320055]
[1644771918844,0.00021875,42279.0,42278.0,0.29052655]
[1644771919044,0.00021875,42279.0,42278.0,0.62320055]
[1644771920244,0.00021875,42279.0,42278.0,0.29052655]
[1644771920445,0.00021875,42279.0,42278.0,0.62320055]
[1644771920644,0.00021875,42279.0,42278.0,0.29052655]
[1644771921893,0.00021875,42279.0,42278.0,0.62320055]
[1644771922095,0.00021875,42279.0,42278.0,0.62342112]
[1644771922496,0.00021875,42279.0,42278.0,0.72342112]
[1644771922801,0.00021875,42279.0,42278.0,0.77342112]
[1644771923396,0.00021875,42279.0,42278.0,0.72342112]
[1644771923999,0.00021875,42279.0,42278.0,1.97342112]
[1644771925351,0.00021875,42279.0,42278.0,0.72342112]
[1644771925746,0.04,42286.0,42279.0,1.44036785]
[1644771925950,0.04,42286.0,42285.0,0.05]
[1644771926145,0.04,42286.0,42285.0,0.382674]
[1644771926747,0.04,42286.0,42285.0,0.27860418]
[1644771926947,0.04,42286.0,42285.0,0.22860418]
[1644771927148,0.04,42286.0,42285.0,0.56127818]
[1644771927548,0.04,42286.0,42285.0,0.22860418]
[1644771927749,0.04,42286.0,42279.0,0.05]
[1644771927952,0.04,42286.0,42284.0,0.05]
[1644771928148,0.04,42286.0,42285.0,0.332674]
[1644771928748,0.04,42286.0,42285.0,0.58691987]
[1644771928993,0.04,42286.0,42285.0,0.25424587]
[1644771929195,0.04,42286.0,42285.0,0.58691987]
[1644771929994,0.04,42286.0,42285.0,0.25424587]
[1644771930195,0.04,42286.0,42285.0,0.58691987]
[1644771930598,0.00038387,42295.0,42290.0,0.1]
[1644771931398,0.059138,42297.0,42290.0,0.1]
[1644771931399,0.00023401,42296.0,42290.0,0.1]
[1644771931597,0.05951889,42295.0,42290.0,0.1]
[1644771932748,0.059135,42295.0,42290.0,0.1]
[1644771932946,0.05951889,42295.0,42290.0,0.1]
[1644771933250,0.00038389,42295.0,42290.0,0.1]
[1644771933846,0.00023401,42296.0,42290.0,0.1]
[1644771934047,0.00528395,42299.0,42290.0,0.1]
[1644771934048,0.00038389,42295.0,42290.0,0.1]
[1644771934948,0.00023401,42296.0,42290.0,0.1]
[1644771935148,0.23966918,42295.0,42290.0,0.1]
[1644771935347,0.24005307,42295.0,42290.0,0.1]
[1644771936151,0.23966918,42295.0,42290.0,0.1]
[1644771936394,0.24005307,42295.0,42290.0,0.1]
[1644771937397,0.00027547,42294.0,42291.0,0.00047383]
[1644771937698,0.00027547,42294.0,42291.0,0.25637614]
[1644771937896,0.00027547,42294.0,42291.0,0.25714681]
[1644771938095,0.00027547,42294.0,42291.0,0.00047383]
[1644771939698,0.059137,42293.0,42291.0,0.00047383]
[1644771939898,0.00027547,42294.0,42291.0,0.00047383]
[1644771940190,0.00027547,42294.0,42278.0,0.05]
[1644771940191,1.4012,42292.0,42278.0,0.05]
[1644771940372,1.4012,42292.0,42274.0,0.1]
[1644771940373,0.3512,42279.0,42274.0,0.1]
[1644771940568,0.3512,42275.0,42267.0,0.05]
[1644771940768,0.3512,42269.0,42256.0,0.05]
[1644771940973,0.0473,42268.0,42256.0,0.05]
[1644771941170,0.0473,42268.0,42257.0,0.26382367]
[1644771941171,0.106479,42268.0,42257.0,0.26382367]
[1644771941368,0.106479,42268.0,42260.0,0.07734846]
[1644771941369,0.3512,42264.0,42260.0,0.07734846]
[1644771941569,0.0473,42263.0,42260.0,0.07734846]
[1644771942068,0.106482,42263.0,42260.0,0.07734846]
[1644771942269,0.05918,42262.0,42260.0,0.07734846]
[1644771942567,0.0473,42261.0,42260.0,0.07734846]
[1644771942768,0.04118,42261.0,42260.0,0.07734846]
[1644771943269,0.04118,42261.0,42252.0,0.03]
[1644771943771,0.3512,42259.0,42252.0,0.03]
[1644771943997,0.059192,42257.0,42252.0,0.03]
[1644771944197,0.34336184,42256.0,42254.0,0.07503834]
[1644771944399,0.0473,42256.0,42254.0,0.07503834]
[1644771945400,0.0473,42256.0,42253.0,0.00038379]
[1644771945800,0.0973,42256.0,42252.0,0.03]
[1644771945999,0.0973,42256.0,42253.0,0.00038379]
[1644771946799,0.4485,42256.0,42253.0,0.00038379]
[1644771947000,0.4485,42256.0,42252.0,0.03]
[1644771947200,0.5485,42256.0,42255.0,0.01]
[1644771947401,0.15,42256.0,42255.0,0.01]
[1644771947845,0.4762,42256.0,42255.0,0.01]
[1644771949047,0.76440422,42256.0,42255.0,0.01]
[1644771949846,0.4762,42256.0,42255.0,0.01]
[1644771950248,0.75993337,42256.0,42255.0,0.01]
[1644771951148,0.4762,42256.0,42255.0,0.01]
[1644771952003,0.47662496,42256.0,42255.0,0.01]
[1644771952302,0.32662496,42256.0,42255.0,0.01]
[1644771953706,0.32662496,42256.0,42255.0,0.08370951]
[1644771954308,0.32662496,42256.0,42255.0,0.01]
[1644771954709,0.61565693,42256.0,42255.0,0.01]
[1644771955648,0.32662496,42256.0,42255.0,0.01]
[1644771956047,0.61236548,42256.0,42255.0,0.01]
[1644771957451,0.61215622,42256.0,42255.0,0.01]
[1644771957848,0.3264157,42256.0,42255.0,0.01]
[1644771959398,0.60960762,42256.0,42255.0,0.01]
[1644771960301,0.75960762,42256.0,42255.0,0.01]
[1644771963647,0.4764157,42256.0,42255.0,0.01]
[1644771965048,0.76064127,42256.0,42255.0,0.01]
[1644771966999,0.92177411,42256.0,42255.0,0.01]
[1644771967201,0.76087346,42256.0,42255.0,0.01]
[1644771967401,0.9220063,42256.0,42255.0,0.01]
[1644771968003,1.0,42255.0,42253.0,0.00035538]
[1644771968203,0.3262,42254.0,42253.0,0.00035538]
[1644771968405,1.0,42253.0,42252.0,0.03]
[1644771968603,1.3762,42253.0,42252.0,0.03]
[1644771968803,1.68733284,42253.0,42252.0,0.03]
[1644771969003,0.19398283,42251.0,42247.0,0.0022]
[1644771969205,0.3762,42250.0,42248.0,4.269e-05]
[1644771969413,0.3762,42250.0,42247.0,0.0022]
[1644771969414,0.32323071,42249.0,42247.0,0.0022]
[1644771969604,0.3262,42248.0,42247.0,0.00234289]
[1644771969807,1.0,42247.0,42245.0,0.0011]
[1644771970005,0.0473,42246.0,42245.0,0.0011]
[1644771970248,0.49787794,42246.0,42245.0,0.0011]
[1644771970448,0.3367451,42246.0,42245.0,0.0011]
[1644771970647,0.64787794,42246.0,42245.0,0.0001]
[1644771970851,0.4867451,42246.0,42245.0,0.0001]
[1644771971848,0.4367451,42246.0,42245.0,0.0001]
[1644771972053,0.1473,42246.0,42245.0,0.0001]
[1644771972450,0.0473,42246.0,42245.0,0.0001]
[1644771973249,0.33274117,42246.0,42245.0,0.0001]
[1644771973451,0.43274117,42246.0,42245.0,0.0001]
[1644771973751,1.0,42245.0,42238.0,0.04857]
[1644771974012,1.0,42245.0,42237.0,0.0014315]
[1644771974013,0.447365,42239.0,42237.0,0.0014315]
[1644771974208,0.49272769,42238.0,42237.0,0.0014315]
[1644771974411,0.49272769,42238.0,42235.0,0.0421]
[1644771974412,0.65196069,42238.0,42235.0,3.15e-05]
[1644771974611,0.218465,42239.0,42238.0,0.33097734]
[1644771975110,0.277699,42239.0,42238.0,0.33097734]
[1644771975509,0.218465,42239.0,42238.0,0.33097734]
[1644771975911,0.218465,42239.0,42238.0,0.32597734]
[1644771976709,0.55994278,42239.0,42238.0,0.32597734]
[1644771976910,0.65994278,42239.0,42238.0,0.32597734]
[1644771977113,0.82116151,42239.0,42238.0,0.32597734]
[1644771977310,0.77116151,42239.0,42238.0,0.32597734]
[1644771977951,1.09736151,42239.0,42238.0,0.32597734]
[1644771978553,1.09736151,42239.0,42238.0,0.32497734]
[1644771979553,1.59736151,42239.0,42238.0,0.32497734]
[1644771980153,1.30588373,42239.0,42238.0,0.32497734]
[1644771980353,1.10588373,42239.0,42238.0,0.32497734]
[1644771980756,1.10588373,42239.0,42232.0,0.0011]
[1644771980757,1.0,42238.0,42232.0,0.0011]
[1644771980954,0.2789,42234.0,42232.0,0.0011]
[1644771981156,0.0473,42233.0,42232.0,0.0011]
[1644771982208,0.0473,42233.0,42231.0,0.0083]
[1644771982412,0.106534,42233.0,42231.0,0.0083]
[1644771982608,0.156534,42233.0,42231.0,0.0083]
[1644771983010,0.29781976,42232.0,42231.0,0.0083]
[1644771983212,0.39511976,42232.0,42231.0,0.0083]
[1644771983412,0.49511976,42232.0,42231.0,0.0083]
[1644771983816,0.49511976,42232.0,42225.0,0.001]
[1644771983817,1.0,42230.0,42225.0,0.001]
[1644771984016,1.0,42230.0,42217.0,0.001]
[1644771984017,0.05,42226.0,42217.0,0.001]
[1644771984216,0.05,42221.0,42217.0,0.001]
[1644771984413,0.0973,42221.0,42220.0,0.0001]
[1644771984815,0.0973,42221.0,42219.0,0.00014277]
[1644771984816,1.20076543,42220.0,42219.0,0.00014277]
[1644771985018,1.24806543,42220.0,42219.0,0.00014277]